bitfinex/quotes_ETHUSD_20240603
["timestamp","ask_amount","ask_price","bid_price","bid_amount"]
[1717425611656,2.35137359,3788.0,3787.6,2.64018]
[1717425611872,0.80688084,3788.0,3787.0,2.6406]
[1717425612092,1.54466616,3787.7,3787.0,2.6406]
[1717425612406,2.11554034,3787.8,3787.0,5.4126]
[1717425612588,2.11555716,3787.8,3787.3,2.64033]
[1717425612789,0.80688084,3787.9,3787.3,2.64033]
[1717425612790,2.11555716,3787.9,3787.3,2.64033]
[1717425613110,2.351547,3788.2,3787.3,2.64033]
[1717425613349,1.37770316,3788.3,3787.7,2.64011]
[1717425613544,2.351547,3788.5,3787.7,2.64011]
[1717425614654,0.80688084,3788.4,3787.7,2.64011]
[1717425615003,2.351547,3788.3,3787.7,2.64011]
[1717425615201,1.37769255,3788.3,3787.7,2.64011]
[1717425615404,0.80688084,3788.3,3787.7,2.64011]
[1717425615847,1.3776792,3788.4,3787.7,2.64011]
[1717425616017,0.80688084,3788.4,3787.7,2.64011]
[1717425616211,0.80688084,3788.3,3787.7,2.64011]
[1717425616808,0.80688084,3788.2,3787.7,2.64011]
[1717425617544,0.80688084,3788.0,3787.7,2.64011]
[1717425618060,1.54466616,3788.3,3787.7,2.64011]
[1717425618061,0.80688084,3788.1,3787.7,2.64011]
[1717425618365,0.80688084,3788.2,3787.9,5.41198]
[1717425618709,2.63907,3789.3,3787.7,2.772]
[1717425618710,0.80688084,3788.6,3787.7,2.772]
[1717425618903,0.80688084,3788.8,3788.4,2.63963]
[1717425620145,0.80688084,3789.0,3788.8,2.63935]
[1717425620345,1.0,3790.0,3788.8,2.63935]
[1717425620346,0.80688084,3789.1,3788.8,2.63935]
[1717425620503,1.0,3790.0,3788.8,2.63935]
[1717425620504,0.80688084,3789.4,3788.8,2.63935]
[1717425620807,0.80688084,3789.5,3787.9,2.772]
[1717425621020,0.80688084,3789.4,3788.0,2.772]
[1717425621256,0.80688084,3789.3,3788.3,2.772]
[1717425621461,0.80688084,3789.0,3788.1,2.778]
[1717425621669,2.63874,3789.7,3788.5,2.63954]
[1717425621670,0.80688084,3788.9,3788.5,2.63954]
[1717425622049,0.80688084,3788.8,3787.9,2.63995]
[1717425622250,2.35240652,3788.6,3787.9,2.63995]
[1717425622659,2.35240652,3788.5,3787.9,2.63995]
[1717425622974,2.2578,3788.2,3786.6,2.64087]
[1717425623154,1.0,3787.9,3787.2,2.64043]
[1717425623522,2.35240652,3787.8,3787.2,2.64043]
[1717425623964,2.35240652,3787.9,3787.2,2.64043]
[1717425624175,2.9232587,3787.9,3787.2,2.64043]
[1717425624524,2.11637786,3787.8,3787.2,2.64043]
[1717425625028,1.54552568,3787.7,3786.8,2.64074]
[1717425625242,2.11637786,3787.6,3787.2,2.64046]
[1717425625436,0.80688084,3787.7,3787.2,2.64046]
[1717425625437,1.54552568,3787.5,3787.2,2.64046]
[1717425625680,2.11637786,3787.5,3787.2,2.64046]
[1717425625820,1.54552568,3787.8,3787.6,2.64019]
[1717425626023,1.54552568,3788.0,3787.8,2.64005]
[1717425626568,1.54552568,3788.2,3787.8,2.64005]
[1717425626941,2.11629577,3788.1,3787.8,2.64005]
[1717425627134,1.54552568,3788.0,3787.8,2.64005]
[1717425627338,1.54552568,3788.0,3787.4,2.64031]
[1717425627566,1.54552568,3787.8,3787.4,2.64031]
[1717425627769,2.6407,3786.9,3785.7,2.64149]
[1717425627973,1.0,3787.1,3785.2,2.64183]
[1717425627974,1.0,3785.8,3785.2,2.64183]
[1717425628141,4.18521389,3786.0,3784.5,5.4203]
[1717425628345,1.54389389,3785.7,3784.9,2.64205]
[1717425628730,0.57081391,3785.6,3784.9,2.64205]
[1717425628929,0.57081391,3785.8,3784.9,2.64205]
[1717425629179,1.54391651,3785.6,3784.9,2.64205]
[1717425629340,0.57081391,3785.5,3784.9,2.64205]
[1717425629755,0.80688084,3785.8,3784.4,2.6424]
[1717425629962,0.80688084,3785.5,3784.4,2.6424]
[1717425630170,0.57081391,3785.6,3784.4,2.6424]
[1717425630376,1.37769475,3785.7,3784.4,2.6424]
[1717425630672,0.57081391,3785.6,3784.4,5.4204]
[1717425631172,0.57081391,3785.7,3784.4,5.4204]
[1717425631470,1.0,3785.5,3783.9,0.1001437]
[1717425631768,3.57081391,3785.7,3783.9,0.1001437]
[1717425632072,0.57081391,3785.6,3783.9,0.1001437]
[1717425632290,3.64165,3785.5,3783.9,2.7429037]
[1717425632606,7.56160675,3785.5,3783.9,2.7429037]
[1717425632884,9.48546391,3785.5,3783.9,2.7429037]
[1717425633472,10.28694688,3785.5,3783.9,2.7429037]
[1717425633975,10.28694688,3785.5,3783.9,0.1001437]
[1717425634272,9.48546391,3785.5,3783.9,0.1001437]
[1717425636832,1.0,3784.7,3783.9,0.1001437]
[1717425637080,1.0,3784.1,3783.9,0.1001437]
[1717425638333,1.57081391,3784.1,3783.9,0.1001437]
[1717425638569,2.6427,3784.0,3783.9,0.1001437]
[1717425638771,3.21351391,3784.0,3783.9,0.1001437]
[1717425639472,9.30551391,3784.0,3783.9,0.1001437]
[1717425640058,8.75551391,3784.0,3783.9,0.1001437]
[1717425640449,9.75551391,3784.0,3783.9,0.1001437]
[1717425640974,10.30551391,3784.0,3783.9,0.1001437]
[1717425641560,10.88341432,3784.0,3783.9,0.1001437]
[1717425642644,10.33341432,3784.0,3783.9,0.1001437]
[1717425642847,10.30551391,3784.0,3783.9,0.1001437]
[1717425644345,9.75551391,3784.0,3783.9,0.1001437]
[1717425644548,4.21351391,3784.0,3783.9,0.1001437]
[1717425644792,4.19922275,3784.0,3783.9,0.1001437]
[1717425645898,3.62840884,3784.0,3783.9,0.1001437]
[1717425646097,4.19992273,3784.0,3783.9,0.1001437]
[1717425647062,8.32782314,3784.0,3783.9,0.1001437]
[1717425647274,12.67632273,3784.0,3783.9,0.02666537]
[1717425647603,12.67632273,3784.0,3783.7,2.36878622]
[1717425647765,2.64284,3783.8,3783.7,2.36878622]
[1717425647967,3.76435389,3783.8,3783.7,2.36878622]
[1717425648232,3.76435389,3783.8,3782.0,0.00158647]
[1717425648233,2.64347,3783.0,3782.0,0.00158647]
[1717425648368,1.0,3782.3,3782.0,0.00158647]
[1717425648566,0.57151389,3782.5,3782.0,0.00158647]
[1717425648888,1.54138151,3782.4,3782.0,0.00158647]
[1717425649116,1.54138151,3782.3,3782.0,0.00158647]
[1717425649462,1.54138151,3782.4,3782.0,0.00158647]
[1717425649765,1.54138151,3782.5,3782.3,2.64389]
[1717425649969,1.54138151,3782.8,3782.3,2.64389]
[1717425650212,1.54138151,3782.6,3782.3,2.64389]
[1717425650708,0.57162793,3782.7,3782.3,2.64389]
[1717425650709,1.54170093,3782.7,3782.3,2.64389]
[1717425650939,1.54170093,3782.7,3782.2,2.4817]
[1717425651069,1.54170093,3782.5,3782.2,2.4817]
[1717425651402,1.54170093,3782.5,3782.0,0.00158647]
[1717425651621,1.54170093,3782.2,3782.0,0.00158647]
[1717425651925,0.57162189,3782.6,3782.0,0.00158647]
[1717425652265,1.0,3782.7,3782.0,0.00158647]
[1717425652470,0.57162189,3782.6,3782.0,0.00158647]
[1717425653003,0.57171451,3782.6,3782.0,0.00158647]
[1717425653508,0.57171451,3782.5,3782.0,0.00158647]
[1717425653711,0.57171451,3782.4,3782.0,0.00158647]
[1717425654031,0.57171451,3782.3,3782.0,0.00158647]
[1717425654164,3.64368,3782.7,3782.0,0.00158647]
[1717425654165,0.57171451,3782.2,3782.0,0.00158647]
[1717425654359,0.57171451,3782.1,3782.0,0.00158647]
[1717425657324,1.0,3781.7,3781.4,0.0042784]
[1717425657664,1.57171451,3781.7,3781.4,0.0042784]
[1717425658110,4.57171451,3781.7,3781.4,0.0042784]
[1717425658323,5.12171451,3781.7,3781.4,0.0042784]
[1717425658580,5.12171451,3781.7,3781.6,0.0765033]
[1717425658736,7.41521451,3781.7,3781.6,3.3e-06]
[1717425659347,3.64487,3780.9,3780.2,0.1]
[1717425659551,1.0,3781.3,3780.2,0.1]
[1717425659754,2.64469,3781.2,3780.2,0.1]
[1717425659935,0.57207451,3781.2,3780.2,0.1]
[1717425660133,0.57207451,3781.1,3780.2,0.1]
[1717425660339,0.57207451,3781.0,3780.3,2.64524]
[1717425660579,3.64433,3781.7,3780.3,2.64524]
[1717425660580,0.57207451,3780.9,3780.3,2.64524]
[1717425661254,0.57207451,3780.9,3780.6,2.4621]
[1717425662242,0.57207451,3780.9,3780.2,0.1]
[1717425662861,1.57207451,3780.9,3780.2,0.1]
[1717425663575,0.57207451,3780.9,3780.2,0.1]
[1717425663776,3.89927451,3780.9,3780.2,0.1]
[1717425663927,6.89927451,3780.9,3780.2,0.1]
[1717425664383,3.89927451,3780.9,3780.2,0.1]
[1717425665224,1.57207451,3780.9,3780.2,0.1]
[1717425665679,0.57207451,3780.9,3780.2,0.1]
[1717425666965,1.57207451,3780.9,3780.2,0.1]
[1717425667948,4.57207451,3780.9,3780.2,0.1]
[1717425668365,4.57207451,3780.9,3780.8,5.8e-06]
[1717425668735,4.57207451,3780.9,3780.0,10.0]
[1717425668736,3.64529,3780.3,3780.0,10.0]
[1717425668939,2.64543,3780.1,3780.0,10.0]
[1717425669193,3.21750451,3780.1,3780.0,10.0]
[1717425669475,4.68821108,3780.1,3780.0,10.0]
[1717425669694,4.21750451,3780.1,3780.0,10.0]
[1717425670100,4.21756466,3780.1,3780.0,10.0]
[1717425670396,6.98821055,3780.1,3780.0,10.0]
[1717425670553,9.51816466,3780.1,3780.0,10.0]
[1717425670956,9.51827256,3780.1,3780.0,10.0]
[1717425671356,7.21767256,3780.1,3780.0,10.0]
[1717425672305,37.21767256,3780.1,3780.0,9.52317101]
[1717425672597,34.21767256,3780.1,3780.0,9.52317101]
[1717425672752,31.57224256,3780.1,3780.0,9.52317101]
[1717425674066,30.57224256,3780.1,3780.0,9.52317101]
[1717425675399,30.0,3780.1,3780.0,9.52317101]
[1717425675700,30.57203162,3780.1,3780.0,9.52317101]
[1717425677580,31.57203162,3780.1,3780.0,9.52317101]
[1717425678231,30.57203162,3780.1,3780.0,9.52317101]
[1717425678383,31.57203162,3780.1,3780.0,9.52317101]
[1717425678812,30.56780852,3780.1,3780.0,9.52317101]
[1717425679625,30.56521653,3780.1,3780.0,9.52317101]
[1717425679932,30.56521653,3780.1,3780.0,11.83447101]
[1717425680530,29.99318491,3780.1,3780.0,11.83447101]
[1717425681285,29.99318491,3780.1,3780.0,14.47997101]
[1717425683983,29.99318491,3780.1,3780.0,12.16867101]
[1717425685752,29.99318491,3780.1,3780.0,14.62877101]
[1717425686757,29.99318491,3780.1,3780.0,17.27427101]
[1717425687067,1.33716957,3782.8,3780.0,17.27427101]
[1717425687068,0.8007946,3782.6,3781.9,2.64413]
[1717425687200,1.0,3782.5,3781.9,2.64413]
[1717425689697,1.0,3782.5,3781.5,2.64444]
[1717425689971,1.0,3782.4,3781.7,2.64424]
[1717425690152,1.0,3782.4,3781.0,2.555]
[1717425690361,1.0,3783.0,3781.6,2.64438]
[1717425690541,1.0,3783.0,3782.1,2.64396]
[1717425690927,1.0,3783.0,3780.7,2.64499]
[1717425690928,1.0,3781.0,3780.0,9.52317101]
[1717425691178,5.01708,3782.9,3780.0,9.52317101]
[1717425691179,1.0,3780.4,3780.0,9.47317101]
[1717425691335,1.0,3780.8,3780.0,9.47317101]
[1717425691538,0.57198349,3780.3,3780.0,9.47317101]
[1717425691739,0.57198349,3780.2,3780.0,9.47317101]
[1717425691966,0.57198349,3780.1,3780.0,9.47317101]
[1717425695195,0.57198349,3780.1,3779.1,2.5]
[1717425695196,1.0,3779.5,3779.1,2.5]
[1717425695535,4.21783349,3779.5,3779.1,2.5]
[1717425695732,1.57198349,3779.5,3779.1,2.5]
[1717425696031,0.57198349,3779.5,3779.1,2.5]
[1717425697554,0.57198349,3780.2,3779.4,5.13260602]
[1717425697874,0.57198349,3780.2,3779.8,2.64561]
[1717425698203,0.57198256,3780.1,3779.8,2.64561]
[1717425698385,0.57198256,3780.7,3779.8,5.14521]
[1717425698557,0.57198256,3780.6,3780.3,2.64527]
[1717425698756,0.80379826,3781.2,3780.3,2.64527]
[1717425698757,0.57198256,3780.5,3780.3,2.64527]
[1717425698972,0.57198256,3781.1,3780.3,2.64527]
[1717425699202,0.57185906,3781.0,3780.3,2.64527]
[1717425699360,0.57185906,3780.9,3780.3,2.64527]
[1717425699700,2.64431,3781.8,3779.8,5.2776]
[1717425699701,0.57185906,3780.8,3780.7,2.64501]
[1717425699909,0.57185906,3781.5,3780.7,2.64501]
[1717425700116,0.57185906,3781.4,3780.7,2.64501]
[1717425700467,0.57185906,3781.3,3780.7,2.64501]
[1717425700673,0.57185906,3781.2,3780.7,2.64501]
[1717425701064,0.57185906,3781.1,3780.7,2.64501]
[1717425701289,0.57185906,3781.0,3780.7,2.64501]
[1717425701465,1.0,3781.4,3781.1,2.64473]
[1717425701662,1.80379826,3782.1,3781.5,2.64442]
[1717425701917,0.57177311,3782.0,3781.5,2.64442]
[1717425702165,0.57177311,3781.9,3781.5,2.64442]
[1717425702492,0.57177311,3781.8,3781.5,2.64442]
[1717425702697,0.57177311,3781.7,3781.5,2.64442]
[1717425702869,0.57177311,3781.6,3781.1,2.64473]
[1717425703066,1.0,3782.1,3781.5,2.64445]
[1717425703323,0.57174681,3782.0,3781.5,2.64445]
[1717425703647,0.57174681,3781.9,3781.5,2.64445]
[1717425704208,1.54398461,3781.6,3781.3,2.64453]
[1717425704416,1.54398461,3781.8,3781.6,2.64438]
[1717425704889,1.54398461,3781.9,3781.6,2.64438]
[1717425705058,1.54398461,3782.0,3781.6,2.64438]
[1717425705466,1.07614284,3783.3,3781.6,2.64438]
[1717425705467,9.1e-06,3782.4,3782.1,2.778]
[1717425705667,0.80379826,3783.9,3783.0,2.64336]
[1717425705868,1.0,3783.6,3783.0,2.64336]
[1717425706104,1.0,3783.2,3783.0,2.64336]
[1717425706267,1.0,3783.2,3782.5,2.64375]
[1717425706467,1.0,3782.8,3782.5,2.64375]
[1717425707103,1.0,3783.6,3782.5,2.64375]
[1717425707305,1.0,3783.6,3781.9,5.778]
[1717425707306,1.0,3783.6,3782.0,5.333]
[1717425707514,1.0,3783.6,3782.1,3.0]
[1717425707686,1.0,3783.6,3782.8,2.6435]
[1717425708596,1.0,3783.7,3782.7,2.64356]
[1717425708774,1.0,3783.3,3782.7,2.64356]
[1717425708975,1.0,3783.3,3781.8,2.4364]
[1717425708976,1.0,3783.3,3782.2,2.64393]
[1717425709505,1.0,3782.9,3782.2,2.64393]
[1717425710118,1.0,3782.9,3781.8,2.4364]
[1717425710119,1.0,3783.4,3782.6,2.64368]
[1717425711010,1.0,3783.4,3782.1,2.64399]
[1717425712104,1.0,3783.4,3782.5,2.64374]
[1717425714380,1.0,3783.4,3782.9,2.64344]
[1717425715936,1.0,3784.1,3782.9,2.64344]
[1717425716228,1.0,3784.4,3783.7,2.6429]
[1717425716376,1.0,3784.8,3783.7,2.6429]
[1717425720449,1.0,3784.8,3784.0,2.64264]
[1717425720611,1.0,3784.2,3783.6,2.64298]
[1717425721007,1.0,3784.6,3783.6,2.64298]
[1717425721756,1.0,3784.6,3784.0,2.64269]
[1717425726738,0.27185559,3786.2,3784.4,2.778]
[1717425726739,1.27185559,3786.2,3784.4,2.778]
[1717425726940,1.0,3786.7,3785.5,2.6416]
[1717425727214,1.0,3786.1,3785.3,5.19673]
[1717425727342,1.0,3786.6,3785.3,5.19673]
[1717425727681,1.0,3786.2,3784.9,4.8485]
[1717425728150,1.0,3786.2,3785.0,3.0]
[1717425728893,1.0,3786.2,3785.5,2.64159]
[1717425730648,1.0,3786.2,3784.9,4.8485]
[1717425730859,1.0,3785.8,3785.1,2.64193]
[1717425731096,1.0,3785.3,3784.7,2.64218]
[1717425731395,1.0,3785.8,3785.1,2.64191]
[1717425731602,1.0,3785.8,3784.7,2.64218]
[1717425732648,1.0,3785.8,3785.1,2.64193]
[1717425733085,1.0,3785.3,3784.4,2.64239]
[1717425733406,1.0,3785.3,3783.9,5.555]
[1717425733407,1.0,3784.9,3784.0,2.64266]
[1717425736511,3.64212,3784.9,3784.0,2.64266]
[1717425736748,3.64212,3784.9,3783.6,2.64297]
[1717425736957,1.0,3784.4,3783.6,2.64297]
[1717425737254,0.5713648,3784.7,3783.9,2.64273]
[1717425737401,0.5713648,3784.9,3783.9,2.64273]
[1717425737608,0.5713648,3784.9,3783.9,5.333]
[1717425737809,0.5713648,3785.5,3783.9,7.6376]
[1717425738356,0.5713648,3785.5,3784.8,2.64209]
[1717425738562,0.5713648,3785.6,3784.8,2.64209]
[1717425738862,0.5713648,3785.9,3784.8,2.64209]
[1717425739812,2.64152,3785.7,3784.8,2.64209]
[1717425740141,0.5713648,3785.6,3784.8,2.64209]
[1717425740809,0.5713648,3786.0,3784.8,2.64209]
[1717425741009,0.5713648,3786.0,3784.5,2.778]
[1717425741212,1.0,3786.1,3784.5,2.778]
[1717425741757,1.0,3786.1,3784.6,5.778]
[1717425742113,1.0,3786.1,3785.3,2.64177]
[1717425744047,1.5713648,3786.1,3785.3,2.64177]
[1717425744207,1.5713648,3786.1,3784.6,3.0]
[1717425744208,2.64133,3786.0,3784.9,2.64207]
[1717425744412,2.64133,3786.0,3784.6,3.0]
[1717425744413,2.64133,3786.0,3785.2,2.64183]
[1717425744726,0.5713648,3785.9,3785.2,2.64183]
[1717425745310,1.0,3785.5,3784.7,2.64216]
[1717425746267,0.5713648,3785.6,3785.0,2.64195]
[1717425746456,0.5713648,3786.0,3785.0,2.64195]
[1717425747124,1.0,3785.7,3784.6,2.64223]
[1717425747938,0.5713648,3785.8,3784.9,2.64203]
[1717425748347,0.5713648,3785.8,3784.4,4.9174]
[1717425748348,0.5713648,3785.8,3785.2,2.64185]
[1717425748515,1.5713648,3786.1,3785.2,2.64185]
[1717425749222,0.5713648,3786.0,3785.2,2.64185]
[1717425749766,1.0,3786.1,3785.2,2.64185]
[1717425750115,2.64131,3786.0,3785.2,2.64185]
[1717425750419,0.5713648,3785.9,3785.2,2.64185]
[1717425751616,1.5713648,3786.1,3785.2,2.64185]
[1717425751817,0.5713648,3786.0,3785.2,2.64185]
[1717425752016,1.0,3786.1,3785.2,2.64185]
[1717425752454,3.64125,3786.1,3784.4,7.6954]
[1717425752684,1.0,3785.6,3784.8,2.64208]
[1717425752894,1.0,3785.6,3784.4,5.00476]
[1717425752895,2.64167,3785.5,3784.4,5.00476]
[1717425753070,2.64167,3785.5,3784.4,2.64236]
[1717425753379,2.64186,3785.3,3784.4,2.64236]
[1717425753581,1.0,3785.1,3784.4,2.64236]
[1717425754285,1.0,3785.1,3784.0,2.64264]
[1717425754286,2.6421,3784.9,3784.0,2.64264]
[1717425754488,1.0,3784.7,3784.0,2.64264]
[1717425754652,2.6423,3784.6,3783.6,2.64294]
[1717425754854,2.64247,3784.4,3783.6,2.64294]
[1717425755056,0.5713648,3784.3,3783.6,2.64294]
[1717425755243,1.0,3784.2,3783.2,2.64322]
[1717425755445,1.5714153,3784.2,3783.2,2.64322]
[1717425755679,1.0,3783.6,3782.0,2.4078]
[1717425755895,2.64305,3783.5,3782.3,2.64386]
[1717425756187,1.0,3783.2,3782.3,2.64386]
[1717425756389,2.10428547,3783.2,3782.3,2.64386]
[1717425756571,1.54640232,3782.7,3782.3,2.64386]
[1717425756772,1.54640232,3782.7,3782.0,2.4078]
[1717425756994,1.54668166,3782.7,3781.8,5.19918]
[1717425757291,1.54668166,3782.8,3781.8,2.64418]
[1717425758389,1.54668166,3782.7,3781.8,2.64418]
[1717425758591,2.07955183,3782.9,3781.8,2.64418]
[1717425758914,1.54668166,3782.9,3781.8,2.64418]
[1717425759306,0.53287017,3783.0,3781.8,2.64418]
[1717425759506,1.10448356,3783.0,3781.8,2.64418]
[1717425760139,1.10448356,3783.0,3782.2,2.64395]
[1717425760413,0.53287017,3783.0,3782.2,2.64395]
[1717425761004,0.53287017,3782.9,3782.2,2.64395]
[1717425761892,0.53287017,3783.0,3782.2,2.64395]
[1717425762271,0.53287017,3783.1,3782.2,2.64395]
[1717425762914,0.53287017,3783.3,3782.5,2.64368]
[1717425763084,0.53287017,3783.4,3782.5,2.64368]
[1717425763422,0.80379826,3783.6,3782.9,2.64344]
[1717425763423,0.53287017,3783.6,3782.9,2.64344]
[1717425763615,1.54668166,3783.9,3782.9,2.64344]
[1717425763616,0.53287017,3783.7,3782.9,2.64344]
[1717425763988,0.53287017,3783.9,3782.4,2.3739]
[1717425764304,0.53287017,3784.2,3783.5,2.64299]
[1717425764507,1.0,3784.0,3783.1,2.64332]
[1717425765078,1.53287017,3784.0,3783.1,2.64332]
[1717425765997,1.0,3784.0,3783.1,2.64332]
[1717425766178,0.53287017,3784.1,3783.5,2.64305]
[1717425766384,0.53287017,3784.3,3783.7,2.64288]
[1717425766824,0.53287017,3784.4,3783.7,2.64288]
[1717425767122,0.53287017,3784.2,3783.7,2.64288]
[1717425767479,0.53287017,3784.2,3783.2,2.6432]
[1717425768007,0.53287017,3784.2,3783.8,2.64281]
[1717425768208,0.53287017,3784.4,3782.8,2.4408]
[1717425768409,0.53287017,3784.4,3783.6,2.64296]
[1717425768410,1.0,3784.3,3783.6,2.64296]
[1717425768728,0.53287017,3784.1,3783.2,2.64326]
[1717425769019,0.53287017,3783.9,3783.2,2.64326]
[1717425769524,0.53287017,3783.8,3783.2,2.64326]
[1717425770092,0.53287017,3783.9,3783.2,2.64326]
[1717425770292,4.17564017,3783.9,3782.8,2.64353]
[1717425770695,0.53287017,3783.7,3782.8,2.64353]
[1717425770899,0.53287017,3783.5,3782.8,2.64353]
[1717425771447,0.53287017,3783.6,3782.8,2.64353]
[1717425771603,0.53287017,3783.5,3782.8,2.64353]
[1717425772441,1.53287017,3783.5,3782.4,2.64382]
[1717425772725,0.53287017,3783.4,3782.4,2.64382]
[1717425773092,1.0,3783.5,3782.4,2.64382]
[1717425773093,0.53287017,3783.3,3782.4,2.64382]
[1717425773424,1.0,3782.5,3781.4,2.64449]
[1717425773932,0.53287017,3782.4,3781.4,2.64449]
[1717425774330,1.0,3782.5,3781.4,2.64449]
[1717425774995,1.0,3782.0,3781.4,2.64449]
[1717425775410,4.17672017,3782.4,3781.4,2.64449]
[1717425775592,0.53287017,3782.4,3781.4,2.555]
[1717425775794,2.61147285,3783.3,3780.9,2.64486]
[1717425775795,0.53287017,3783.0,3782.7,2.64359]
[1717425776042,0.53287017,3783.6,3782.7,2.64359]
[1717425776334,2.08107432,3783.9,3783.1,2.64331]
[1717425776543,0.53287017,3784.1,3783.1,2.64331]
[1717425776894,2.65254895,3784.2,3783.1,2.64331]
[1717425777297,1.0,3783.9,3783.1,2.64331]
[1717425777559,2.434,3783.8,3782.7,2.64359]
[1717425778196,5.72390432,3783.9,3783.1,2.64331]
[1717425778197,3.08107432,3783.9,3783.1,2.64331]
[1717425778495,0.57151722,3783.8,3783.4,2.64305]
[1717425778729,2.08107432,3784.2,3783.4,2.64305]
[1717425778911,2.65253612,3784.2,3783.4,2.64305]
[1717425779109,1.0,3784.3,3783.4,2.64305]
[1717425779315,1.57141738,3784.3,3783.4,2.64305]
[1717425779517,2.54970772,3784.3,3783.4,2.64305]
[1717425779725,3.12112412,3784.3,3783.4,2.64305]
[1717425780038,2.12112412,3784.2,3783.4,2.64305]
[1717425780549,1.54970772,3784.2,3783.8,2.64284]
[1717425780713,1.54970772,3784.3,3783.8,2.64284]
[1717425780908,1.54970772,3784.4,3783.8,2.64284]
[1717425781114,1.54958823,3784.5,3783.8,2.64284]
[1717425781319,0.53287017,3784.8,3783.8,2.64284]
[1717425781541,1.54957912,3784.6,3783.8,2.64284]
[1717425781844,1.54957912,3784.5,3783.8,2.64284]
[1717425782147,1.0,3784.1,3783.2,2.64323]
[1717425782360,1.54957912,3784.0,3783.2,2.64323]
[1717425782500,1.54957912,3783.8,3783.2,2.64323]
[1717425782851,1.0,3784.1,3783.2,2.64323]
[1717425782852,2.12093422,3783.7,3783.2,2.64323]
[1717425783005,2.12093422,3783.6,3783.2,2.64323]
[1717425783205,2.12093422,3783.5,3783.2,2.64323]
[1717425783454,1.54957912,3783.5,3782.8,2.64353]
[1717425783667,2.12093422,3783.4,3782.8,2.64353]
[1717425783808,1.0,3783.7,3781.3,2.3361]
[1717425783809,1.54957912,3783.1,3781.3,2.3361]
[1717425784001,1.54957912,3782.9,3782.5,2.6437]
[1717425784200,1.54957912,3782.8,3782.5,2.6437]
[1717425784402,0.53287017,3783.6,3782.6,2.3361]
[1717425784604,1.0,3785.3,3783.8,2.64284]
[1717425784605,0.53287017,3784.6,3783.8,2.64284]
[1717425784865,1.53287017,3784.6,3783.8,2.64284]
[1717425785152,0.5714748,3784.5,3783.8,2.64284]
[1717425785739,0.5714748,3784.6,3784.1,2.64256]
[1717425786047,1.10434497,3784.8,3784.1,2.64256]
[1717425786406,0.53287017,3784.7,3784.1,2.64256]
[1717425786802,0.53287017,3784.7,3783.7,2.6429]
[1717425787663,0.53287017,3784.7,3784.1,2.64261]
[1717425787808,1.10434497,3784.7,3784.1,2.64261]
[1717425788013,0.53287017,3784.7,3784.1,2.64261]
[1717425788209,1.0,3784.5,3783.7,2.64289]
[1717425788411,1.53287017,3784.5,3783.7,2.64289]
[1717425788652,1.10434497,3784.4,3783.7,2.64289]
[1717425789007,0.53287017,3784.3,3783.7,2.64289]
[1717425789212,1.10434497,3784.4,3783.7,2.64289]
[1717425789459,0.53287017,3784.3,3783.7,2.64289]
[1717425789670,1.0,3784.1,3783.3,2.64318]
[1717425789954,0.53287017,3784.0,3783.3,2.64318]
[1717425790134,0.53287017,3783.9,3783.3,2.64318]
[1717425790579,0.53287017,3783.8,3783.3,2.64318]
[1717425790939,1.10434497,3783.8,3783.3,2.64318]
[1717425791351,0.53287017,3783.7,3783.3,2.64318]
[1717425791873,1.10434497,3783.8,3783.3,2.64318]
[1717425792089,0.53287017,3783.8,3783.3,2.64318]
[1717425792233,0.53287017,3783.7,3783.3,2.64318]
[1717425792438,1.53287017,3783.7,3782.9,2.64346]
[1717425792751,0.53287017,3783.5,3782.9,2.64346]
[1717425794156,0.53287017,3783.5,3782.5,2.555]
[1717425794157,0.53287017,3783.5,3783.2,2.64321]
[1717425794570,0.53287017,3783.7,3783.2,2.64321]
[1717425794968,0.53287017,3783.7,3783.5,2.64298]
[1717425795177,0.80379826,3783.9,3783.5,2.64298]
[1717425795178,0.53287017,3783.9,3783.5,2.64298]
[1717425795375,0.53287017,3784.3,3783.9,2.64271]
[1717425795849,0.53287017,3784.4,3783.9,2.64271]
[1717425796050,0.53287017,3784.4,3784.3,2.64249]
[1717425796693,0.53287017,3784.6,3784.3,2.64249]
[1717425797746,0.53287017,3784.5,3784.3,2.64249]
[1717425797951,0.53287017,3784.4,3784.3,2.64249]
[1717425798187,0.53287017,3784.5,3784.3,2.64249]
[1717425798391,0.53287017,3784.4,3784.3,2.64249]
[1717425798759,0.53287017,3784.4,3783.9,2.64274]
[1717425799058,0.53287017,3784.2,3783.9,2.64274]
[1717425799257,0.53287017,3784.1,3783.9,2.64274]
[1717425799457,0.80379826,3784.1,3783.9,2.64274]
[1717425799871,0.80379826,3784.0,3783.9,2.64274]
[1717425801442,0.80379826,3784.1,3783.9,2.64274]
[1717425801644,1.34905408,3784.4,3784.1,2.64263]
[1717425801645,0.53977502,3784.2,3784.1,2.64263]
[1717425801849,0.53977502,3784.5,3784.1,2.64263]
[1717425802075,0.53977502,3784.6,3784.5,2.64235]
[1717425802275,0.53977502,3784.7,3784.5,2.64235]
[1717425802989,0.53977502,3784.6,3784.5,2.64235]
[1717425803561,0.80379826,3784.8,3784.5,2.64235]
[1717425803562,0.53977502,3784.8,3784.5,2.64235]
[1717425804157,0.53977502,3784.9,3784.5,2.64235]
[1717425804367,0.53977502,3785.0,3784.9,2.64207]
[1717425804858,0.53976578,3785.0,3784.9,2.64207]
[1717425805363,0.80379826,3785.0,3784.9,2.64207]
[1717425805880,0.57125776,3785.1,3784.9,2.64207]
[1717425805881,3.19891228,3785.1,3784.9,2.64207]
[1717425806218,2.12276944,3785.0,3784.1,2.64259]
[1717425806349,0.53982142,3784.6,3784.1,2.64259]
[1717425806549,1.55165354,3784.7,3784.1,2.64259]
[1717425806550,0.53982142,3784.3,3784.1,2.64259]
[1717425806872,0.53982142,3784.3,3783.3,2.64315]
[1717425807214,0.53982142,3783.7,3783.3,2.64315]
[1717425807353,0.53982142,3783.4,3783.3,2.64315]